{"text_format":"3","workbook":"xlsx","n_sheets":1,"sheets":["педсостав"],"not_rendered":{"external_links":1,"defined_names":5},"read":"whole","date_system":"1900"}

{"sheet":"педсостав","index":0,"n_rows":80,"n_cols":23,"rows_kept":80}
["Список педагогических работников образовательных организаций на начало 2018-2019 учебного года"]
[]
["№ п/п","Образовательная организация","Ф.И.О. педагогического работника","Дата рождения (ДД.ММ.ГГГГ)","Возраст (полных лет)","Образование (высшее, средне-специальное, учебное заведение, год окончания), включая переподготовку","Специальность по диплому","Дожность (из трудовой книжки)","Преподаваемые предметы с указанием классов с литера","Количество часов (указывать по каждому преподаваемому предмету)","Общий трудовой стаж работы","Педагогический стаж работы","Стаж работы в данной должности","Квалификационная категория","Год прохождения педагогической аттестации","Предмет, по которому  аттестовался педагог","Год прохождения последних курсов повышения квалификации","Место прохождени КПК","Тема КПК","Ведомственные награды","Контактный телефон (сотовый) ","Личная электронная почта","Совместитель (внутренний, внешний, в случае внешнего совместителя указать место основной работы)"]
[1,"МБОУ \"Урмандеевская НОШ-ДС\"","Алексеева Светлана Геннадьевна","04.04.1985г.",33,"Высшее, Московский социально-гуманитарный институт, 2008г. Набережночелнинский институт социально-педагогических технологий и ресурсов, 2012г. Казанский инновационный университет имени В.Г.Тимирясова, 2017г","учитель-логопед, учитель начальных классов, учитель татарского языка и литературы","учитель начальных классов","учитель начальных классов, учитель татарского языка 2,3 классы","20- начальные классы, 2 татарский язык 2,3 классы, 1 музыка 4 класс",16,14,8,1,"2019г","начальные классы","2019г","Федеральное государственное бюджетное образовательное учреждение высшего образования «Набережночелнинский государственный педагогический университет»","Психолого-педагогические аспекты реализации ФГОС НОО обучающихся с ОВЗ и ФГОС образования обучающихся с УО в условиях общеобразовательных школ",null,89376133791,"0434000054@edu.tatar.ru"]
[2,"МБОУ \"Урмандеевская НОШ-ДС\"","Архипова София Николаевна","15.04.1968г.",50,"Высшее, Набережгочелнинский госудврственный педагогический институт, 2009г","учитель начальных классов","учитель начальных классов","учитель начальных классов",23,30,30,30,1,"2019г","начальные классы","2017г","ФГАОУ ВО \"Казанский (Приволжский) федеральный университет\"","Разработка технологической карты урока с учетом требования ФГОС НОО",null,89872701761,"0434000024@edu.tatar.ru"]
[3,"МБОУ \"Урмандеевская НОШ-ДС\"","Семенова Любовь Геннадьевна","31.10.1978г.",39,"Высшее, Набережгочелнинский госудврственный педагогический институт, 2006г","учитель начальных классов","учитель начальных классов","учитель начальных классов",24,16,15,15,1,"2015г","начальные классы","2019г","ГАПОУ \"Нижнекамский педагогический колледж\"","Компетентностный подход в профессиональной деятельности педагога как системная характеристика качества начального общего образования",null,89377727136,"0434000044@edu.tatar.ru"]
[4,"МБОУ \"Урмандеевская НОШ-ДС\"","Тарасова Мария Васильевна","05.05.1982г.",36,"Высшее, Набережгочелнинский госудврственный педагогический институт, 2006г. Казанский инновационный университет имени В.Г.Тимирясова, 2017г","учитель начальных классов, учитель-логопед","учитель начальных классов","учитель начальных классов",23,16,16,16,1,"2016г","начальные классы","2018г","ГАПОУ \"Казанский педагогический колледж\"","Исследовательская деятельность учителя начальных классов в условиях реализации ФГОС НОО",null,89274816682,"043400005434@edu.tatar.ru"]
[5,"МБОУ \"Урмандеевская НОШ-ДС\"","Музилеева Ирина Арсентьевна","10.11.1966г.",51,"Высшее, Казанский Государственный педагогический институт, 1989г.","Учитель истории, обществоведения, английский язык","учитель английского языка","учитель английского языка 2-4 классов",6,30,30,14,"СЗД",2016,"английский язык",2018,"ГАОУ ДПО \"Институт развития образования Республики Татарстан\"","Контроль и оценка образовательных достижений обучающихся на уровне начального общего образования",null,89372885414,"0434000015@edu.tatar.ru"]
[6]
[7]
[8]
[9]
[10]
[11]
[12]
[13]
[14]
[15]
[16]
[17]
[18]
[19]
[20]
[21]
[22]
[23]
[24]
[25]
[26]
[27]
[28]
[29]
[30]
[31]
[32]
[33]
[34]
[35]
[36]
[37]
[38]
[39]
[40]
[41]
[42]
[43]
[44]
[45]
[46]
[47]
[48]
[49]
[50]
[51]
[52]
[]
[null,"Итого:"]
["№ п/п","Показатели (без внешних совместителей)","Количество","Процент от общего количества"]
[1,"Наличие кв.кат.",null,{"$f":"C59/$C$57*100","v":{"$error":"#DIV/0!"}}]
["1.1.","с высшей кв.кат.",null,{"$f":"C60/$C$57*100","v":{"$error":"#DIV/0!"}}]
["1.2.","с первой кв.кат.",null,{"$error":"#DIV/0!"}]
[2,"не имеют кв.кат.",null,{"$error":"#DIV/0!"}]
["2.1.","аттестованы на СЗД",null,{"$error":"#DIV/0!"}]
[3,"По стажу работы",null,{"$error":"#DIV/0!"}]
["3.1.","до 5 лет",null,{"$error":"#DIV/0!"}]
["3.2.","6-10 лет",null,{"$error":"#DIV/0!"}]
["3.3.","11-15 лет",null,{"$error":"#DIV/0!"}]
["3.4.","16-20 лет",null,{"$error":"#DIV/0!"}]
["3.5.","21-25 лет",null,{"$error":"#DIV/0!"}]
["3.6.","26 и выше",null,{"$error":"#DIV/0!"}]
[4,"По возрасту",null,{"$error":"#DIV/0!"}]
["4.1.","до 25 лет",null,{"$error":"#DIV/0!"}]
["4.2.","26-30 лет",null,{"$error":"#DIV/0!"}]
["4.3.","31-35 лет",null,{"$error":"#DIV/0!"}]
["4.4.","36-40 лет",null,{"$error":"#DIV/0!"}]
["4.5.","41-45 лет",null,{"$error":"#DIV/0!"}]
["4.6.","46-50 лет",null,{"$error":"#DIV/0!"}]
["4.7.","51-55 лет",null,{"$error":"#DIV/0!"}]
["4.8.","56-60 лет",null,{"$error":"#DIV/0!"}]
["4.9.","61 год и выше",null,{"$error":"#DIV/0!"}]